Cogmind - Beta 12 *** ADVENTURER MODE // 2023.04.02 @ 18:20:51 Player: pl-41d Result: Destroyed by G-50 Soldier with Heavy Laser Performance ------------- Evolutions (5) 2500 Regions Visited (12) 2400 Robots Destroyed (133) 665 Value Destroyed (5090) 5090 Prototype IDs (44) 880 Alien Tech Used (1) 200 Bonus (223) 223 TOTAL SCORE: 11958 Bonus ------- Follower Combat Kills 50 Aligned with FarCom 300 Friendly Fire -127 Cogmind --------- Core Integrity 0/1000 Matter 270/300 Energy 39/100 System Corruption 33% Temperature Cool (41) Movement Core (200) Ox3 Location -5/Factory Parts ------- > --- POWER (2) -------- (None) > --- PROPULSION (6) --- (None) > --- UTILITY (7) ------ (None) > --- WEAPON (3) ------- Heavy Phase Cannon > --- INVENTORY (5) ---- Micro Nuclear Core Neutrino Core High-capacity Matter Pod (200) Improved Light Armor Plating High-powered Shock Rifle Peak State ------------ > --- POWER ------------ Cold Fusion Reactor Micro Fission Core > --- PROPULSION ------- Improved Titanium Leg Improved Titanium Leg Flexi-carbon Leg Improved VSS Leg > --- UTILITY ---------- Advanced Heat Sink Improved Cooling System High-capacity Storage Unit Enhanced Optical Array Improved Target Analyzer Makeshift Armor Plating Improved Hacking Suite > --- WEAPON ----------- Force Rifle Power Maul Power Sword > --- INVENTORY -------- Improved Deuterium Engine Micro Nuclear Core Carbon-fiber Leg Improved Titanium Leg Flexi-carbon Leg Flexi-carbon Leg Armored Wheel Improved Cooling System High-capacity Matter Pod Advanced Sensor Array Advanced ECM Suite Improved Light Armor Plating High-powered Tractor Beam Trap Extractor Improved Arc Projector Heavy Ion Cannon Coil Gun Heavy Machine Gun Mini Grenade Launcher Remote Datajack [Rating: 81] Favorites ----------- Power Light Fission Core Engine Light Ion Engine Power Core Light Fission Core Reactor Cold Fusion Reactor Propulsion Advanced Treads Treads Advanced Treads Leg Improved Titanium Leg Wheel Armored Wheel Hover Unit Gravmag System Flight Unit VTOL Module Utility High-capacity Storage Unit Device Improved Terrain Scanner Storage High-capacity Storage Unit Processor Improved Terrain Scan Processor Hackware Hacking Suite Protection Makeshift Armor Plating Weapon Makeshift Axe Energy Gun Particle Gun Energy Cannon Heavy Ion Cannon Ballistic Gun AWS/Gauss Ballistic Cannon Mini Assault Cannon Launcher Mini Grenade Launcher Special Weapon Remote Datajack Impact Weapon Power Maul Slashing Weapon Makeshift Axe Piercing Weapon Heavy Pick Build | -11 -10 -10 -10 -9 -8 -7 -7 -7 -6 -6 -6 -5 ------- Run | Jun Mat Min Exi Min Mat Fac Low Low Fac Low Low Fac Slots Evolved 10 | . . . . . 4 2 . . 2 . . 2 Power 1 | . . . . . . . . . 1 . . . Propulsion 4 | . . . . . 1 1 . . . . . 2 Utility 4 | . . . . . 2 1 . . 1 . . . Weapon 1 | . . . . . 1 . . . . . . . Parts Attached 252 | 7 13 . 3 1 32 48 25 12 58 9 . 44 Power 27 | 1 . . . 1 2 7 2 3 4 1 . 6 Engine 9 | 1 . . . 1 1 5 . . 1 . . . Core 17 | . . . . . 1 2 2 3 2 1 . 6 Reactor 1 | . . . . . . . . . 1 . . . Propulsion 48 | 2 2 . . . 7 2 4 1 16 1 . 13 Treads 12 | . 2 . . . 6 2 2 . . . . . Leg 14 | 2 . . . . . . 1 . 9 . . 2 Wheel 3 | . . . . . . . 1 1 1 . . . Hover 9 | . . . . . . . . . 4 . . 5 Flight 10 | . . . . . 1 . . . 2 1 . 6 Utility 108 | 2 7 . . . 14 25 12 5 25 3 . 15 Device 68 | 1 4 . . . 10 18 5 1 15 . . 14 Storage 9 | 1 2 . . . . . 2 2 1 1 . . Processor 15 | . . . . . 2 4 2 2 3 1 . 1 Hackware 4 | . . . . . 1 1 . . 1 1 . . Protection 12 | . 1 . . . 1 2 3 . 5 . . . Artifact . | . . . . . . . . . . . . . Weapon 69 | 2 4 . 3 . 9 14 7 3 13 4 . 10 Energy Gun 12 | 1 3 . 1 . 1 1 1 . 2 . . 2 Energy Cannon 9 | . . . . . . 1 . 2 3 1 . 2 Ballistic Gun 9 | 1 . . 2 . 2 . 1 . 1 . . 2 Ballistic Cannon 6 | . . . . . 1 4 . . 1 . . . Launcher 11 | . . . . . 2 1 3 1 . 3 . 1 Special Weapon 4 | . 1 . . . . . 1 . 1 . . 1 Impact Weapon 3 | . . . . . . 1 . . 1 . . 1 Slashing Weapon 14 | . . . . . 3 6 1 . 3 . . 1 Piercing Weapon 1 | . . . . . . . . . 1 . . . Special Melee Weapon . | . . . . . . . . . . . . . Unidentified Prototypes 8 | . . . . . 1 3 1 . 2 . . 1 Corrupted Parts 2 | . . . . . . . . . . . . 2 System Corruption 8 | . . . . . . . . . . . . 8 Parts Lost 48 | . . . . . . 1 15 6 5 4 . 17 Power 8 | . . . . . . . 2 1 2 1 . 2 Propulsion 16 | . . . . . . . 6 1 3 1 . 5 Utility 14 | . . . . . . 1 4 2 . 2 . 5 Weapon 10 | . . . . . . . 3 2 . . . 5 Highest Loss Streak 7 | . . . . . . 1 7 5 3 2 . 6 To Critical Strikes . | . . . . . . . . . . . . . Average Slot Usage (%) 85 | . 99 100 91 85 91 98 85 41 92 19 . 33 Engine 5 | . 14 14 14 14 9 4 . . 1 . . . Core 3 | . . . . . . 2 6 5 6 2 . 3 Treads 16 | . 26 28 28 28 26 29 5 . . . . . Leg 3 | . 1 . . . . . 5 1 15 . . . Wheel 1 | . . . . . . . 5 5 2 . . . Hover 1 | . . . . . . . . . 3 . . 8 Device 13 | . 13 14 14 14 16 14 14 4 11 . . 10 Storage 9 | . 14 14 14 14 9 7 9 10 8 . . . Processor 5 | . . . . . 8 7 11 1 8 5 . . Hackware 2 | . . . . . 1 7 . . 5 5 . . Protection 1 | . . . . . . . 2 . 5 . . . Energy Gun 5 | . 21 28 13 . . . . . 4 . . 1 Ballistic Gun 3 | . 3 . 6 14 9 3 . . . . . . Ballistic Cannon 4 | . . . . . 1 11 7 1 2 . . . Special Weapon 1 | . 3 . . . . . 5 1 . . . . Slashing Weapon 4 | . . . . . 8 6 6 1 4 . . 2 Naked Turns 365 | . . . . . . . . 96 1 23 96 149 Heaviest Build 89 | 12 50 50 54 56 64 71 67 67 89 19 . 37 Greatest Support 86 | 20 40 40 40 40 66 86 86 12 80 3 3 42 Greatest Overweight (x) 6 | . 1 1 1 1 . 1 5 5 6 6 . 4 Average Overweight (x) 1 | . . 1 1 1 . . 3 2 1 . . . Largest Inventory Capacity 20 | 8 20 20 20 20 20 20 20 20 20 5 5 5 Average Capacity 17 | 7 16 20 20 20 20 20 20 16 17 5 5 5 Most Carried 20 | 8 14 17 19 20 20 20 18 12 20 5 4 5 Average Carried 13 | 5 10 15 18 19 18 18 8 6 12 4 4 4 Final Capacity 20 | 8 20 20 20 20 20 20 20 20 5 5 5 5 Final Carried 20 | 8 14 17 19 20 20 18 10 5 5 4 4 5 Class Distribution -------------------- 35% | Mutant 23% | Assassin 19% | Hacker-Assassin 11% | Hacker-Mutant 5% | Scavenger-Mutant Dominant Class ---------------- Mutant | -10/Materials Mutant | -10/Mines Mutant | -10/Exiles Mutant | -9/Mines Assassin | -8/Materials Hacker-Assassin | -7/Factory Assassin | -7/Lower Caves Mutant | -7/Lower Caves Hacker-Mutant | -6/Factory Mutant | -6/Lower Caves Mutant | -6/Lower Caves Mutant | -5/Factory Resources | -11 -10 -10 -10 -9 -8 -7 -7 -7 -6 -6 -6 -5 ----------- Run | Jun Mat Min Exi Min Mat Fac Low Low Fac Low Low Fac Matter Collected 4667 | 211 225 136 71 10 409 1351 714 133 798 68 . 541 Remotely 746 | . . . . . 38 550 108 . 50 . . . Salvage Created 5679 | 17 478 84 . 138 1260 1252 514 46 1214 . . 676 Parts 307 | 4 16 2 . 13 73 62 27 2 70 . . 38 Haulers Intercepted 6 | . 2 . . . 2 2 . . . . . . Recyclers Shooed 2 | . 1 . . . . 1 . . . . . . Parts Field Recycled . | . . . . . . . . . . . . . Retrieved Matter . | . . . . . . . . . . . . . Parts Self-Destructed 29 | . . . . . . . 29 . . . . . Prevented . | . . . . . . . . . . . . . Kills | -11 -10 -10 -10 -9 -8 -7 -7 -7 -6 -6 -6 -5 ------- Run | Jun Mat Min Exi Min Mat Fac Low Low Fac Low Low Fac Combat Hostiles Destroyed 101 | . 7 2 . 4 18 26 16 . 15 . . 13 Melee 2 | . . . . . . . 1 . . . . 1 Guns 48 | . 7 2 . 4 17 3 . . 6 . . 9 Cannons 47 | . . . . . 1 23 14 . 9 . . . AOE 4 | . . . . . . . 1 . . . . 3 Classes Destroyed 17 | 1 4 . . 3 3 3 1 . 2 . . . Builder 4 | . . . . 1 1 1 . . 1 . . . Tunneler 1 | 1 . . . . . . . . . . . . Hauler 6 | . 2 . . . 2 2 . . . . . . Recycler 14 | . 3 . . . 3 5 . . 3 . . . Operator 1 | . . . . . 1 . . . . . . . Watcher 5 | . . . . . 2 3 . . . . . . Swarmer 22 | . 3 . . 1 3 5 5 . . . . 5 Grunt 33 | . 4 2 . 1 7 9 6 1 1 . . 2 Brawler 2 | . . . . . . 1 . . . . . 1 Duelist 4 | . . . . 1 . . 3 . . . . . Sentry 14 | . . . . . 8 2 1 . 2 . . 1 Demolisher 1 | . . . . 1 . . . . . . . . Specialist 2 | . . . . . . . . . 2 . . . Hunter 3 | . . . . . . 1 . . 1 . . 1 Programmer 19 | . . . . . . 8 . . 8 . . 3 Heavy 1 | . . . . . . . . . 1 . . . Behemoth 1 | . . . . . . . 1 . . . . . Best Kill Streak 6 | 1 4 2 . 2 3 4 6 . 4 . . 3 Combat Bots Only 6 | . 2 2 . 2 3 3 6 . 4 . . 3 Max Kills in Single Turn 2 | 1 1 1 . 2 2 1 1 1 2 . . 1 Gunslinging . | . . . . . . . . . . . . . Exploded 1 | . . . . . . . 1 . . . . 1 Melee 1 | . . . . . . . 1 . . . . 1 Uniques/NPCs Destroyed . | . . . . . . . . . . . . . Combat | -11 -10 -10 -10 -9 -8 -7 -7 -7 -6 -6 -6 -5 -------- Run | Jun Mat Min Exi Min Mat Fac Low Low Fac Low Low Fac Damage Taken 8733 | . 224 24 . 23 330 828 1752 745 1147 501 56 3103 Core 2388 | . 65 24 . . 47 60 261 271 226 370 56 1008 Absorbed by Shields . | . . . . . . . . . . . . . Regen/Repaired (Parts) 79 | . . . . . . 79 . . . . . . Core Remaining (%) 58 | 100 . . . 64 91 . . 15 . . 23 . Volleys Fired 258 | 1 31 3 . . 6 69 41 12 45 . . 50 Largest 3 | 2 2 2 . . 2 2 3 2 3 . . 2 Hottest 205 | 70 150 130 . . 100 96 153 128 205 . . 150 Shots Fired 546 | 2 61 6 . 10 83 138 86 19 77 . . 64 Gun 281 | 2 59 6 . 10 80 28 12 . 32 . . 52 Cannon 231 | . . . . . 2 110 54 19 44 . . 2 Launcher 31 | . . . . . 1 . 20 . . . . 10 Special 3 | . 2 . . . . . . . 1 . . . Kinetic 362 | 1 12 . . 10 79 138 60 10 19 . . 33 Thermal 129 | 1 49 6 . . 3 . 6 9 53 . . 2 Explosive 15 | . . . . . 1 . 14 . . . . . Electromagnetic 39 | . . . . . . . 6 . 4 . . 29 Robot Hit Streak 59 | 1 17 19 . 29 59 13 20 14 15 . . 21 Robot Miss Streak 6 | 1 3 . . . 2 2 6 1 2 . . 3 Penetration Max 1 | . . . . . . 1 . . 1 . . . Secondary Targets 2 | . 1 1 . . . . . . . . . . Max Gunslinging Chain 1 | . 1 1 . . . . . . . . . . Autonomous 83 | . . . . 10 73 . . . . . . . Shots Hit Robots 442 | 1 40 6 . 10 82 107 65 17 60 . . 54 Core Hits 217 | 1 18 3 . 6 33 56 32 3 26 . . 39 Critical Kills 2 | . . . . 1 1 . . . . . . . Critical Parts Destroyed 6 | . . . . . 2 . . . 4 . . . Critical Strikes 33 | . 2 1 . 1 5 14 3 . 7 . . . Burn 3 | . 2 1 . . . . . . . . . . Destroy 8 | . . . . 1 3 . . . 4 . . . Blast 20 | . . . . . . 14 3 . 3 . . . Sever 2 | . . . . . 2 . . . . . . . Melee Attacks 100 | . . . . . 17 33 5 . 40 . . 5 Impact 5 | . . . . . . . . . 1 . . 4 Slashing 95 | . . . . . 17 33 5 . 39 . . 1 Piercing . | . . . . . . . . . . . . . Sneak Attacks 3 | . . . . . 2 1 . . . . . . Combat Hostiles . | . . . . . . . . . . . . . Follow-up Attacks . | . . . . . . . . . . . . . Damage Inflicted 12411 | 12 546 95 . 332 2439 3234 2140 504 2002 13 . 1094 Guns 5374 | 12 546 95 . 331 2059 675 325 . 654 . . 677 Cannons 5378 | . . . . . 47 2325 1136 504 1333 . . 33 Explosions 964 | . . . . . . 152 604 . . . . 208 Melee 523 | . . . . . 333 82 75 . . . . 33 Ramming 172 | . . . . 1 . . . . 15 13 . 143 Kinetic 8306 | . 60 . . 331 2045 3000 1320 256 821 . . 473 Thermal 2287 | 12 486 95 . . 61 . 141 248 1143 . . 101 Explosive 502 | . . . . . . . 502 . . . . . Electromagnetic 621 | . . . . . . 152 102 . 23 . . 344 Impact 33 | . . . . . . . . . . . . 33 Slashing 490 | . . . . . 333 82 75 . . . . . Piercing . | . . . . . . . . . . . . . Highest Corruption 33 | . . . . . . 1 . . 4 2 2 33 Average Corruption 5 | . . . . . . 1 . . 2 2 2 12 Corruption Purged 7 | . . . . . . 1 . . 4 . . 2 Corruption Blocked . | . . . . . . . . . . . . . Effects 89 | . . . . . . . . . 26 9 2 52 Message Errors 22 | . . . . . . . . . 5 2 1 14 Matter Fused 16 | . . . . . . . . . 3 2 1 10 Heat Flow Errors 6 | . . . . . . . . . 3 1 . 2 Energy Discharges 9 | . . . . . . . . . 3 . . 6 Parts Rejected 1 | . . . . . . . . . 1 . . . Data Loss (minor) 15 | . . . . . . . . . 10 1 . 4 Data Loss (major) 6 | . . . . . . . . . . 2 . 4 Misfires 1 | . . . . . . . . . . . . 1 Alerts 4 | . . . . . . . . . 1 1 . 2 Misdirections 7 | . . . . . . . . . . . . 7 Weapon Failures 2 | . . . . . . . . . . . . 2 Overload Shots . | . . . . . . . . . . . . . Overflow Damage 212 | . . . . . 7 68 . . 137 . . . Projectiles 146 | . . . . . . 9 . . 137 . . . Explosions 7 | . . . . . . 7 . . . . . . Melee 59 | . . . . . 7 52 . . . . . . Knockbacks 22 | . . . . . . 14 5 1 . . . 2 Impact 2 | . . . . . . . . . . . . 2 Kinetic 19 | . . . . . . 13 5 1 . . . . Secondary 1 | . . . . . . 1 . . . . . . Self-Inflicted Damage 272 | . . . . . 22 36 . . 15 6 . 193 Shots 11 | . . . . . 1 3 . . . . . 7 Rammed 26 | . . . . 1 . . . . . 2 . 23 Targets Rammed 26 | . . . . 1 . . . . . 2 . 23 Kicked . | . . . . . . . . . . . . . Crushed . | . . . . . . . . . . . . . Highest Temperature 525 | 30 390 225 . . 57 402 525 368 315 197 . 257 Average Temperature 101 | 18 113 119 . . 23 60 174 190 87 104 . 38 Received Heat Transfer 1884 | . 108 18 . 18 162 291 369 120 69 297 36 396 Effects 9 | . 1 . . . . . 7 1 . . . . Shutdowns 4 | . 1 . . . . . 2 1 . . . . Energy Bleed 1 | . . . . . . . 1 . . . . . Damage (major) 4 | . . . . . . . 4 . . . . . Siege Activations . | . . . . . . . . . . . . . Robots Corrupted 1 | . . . . . . 1 . . . . . . Combat Hostiles . | . . . . . . . . . . . . . Parts Fried 1 | . . . . . . 1 . . . . . . Impact Corruptions . | . . . . . . . . . . . . . Robots Melted . | . . . . . . . . . . . . . Combat Hostiles . | . . . . . . . . . . . . . Parts Melted 7 | . 2 1 . . . . . . 4 . . . Heat Transferred 4126 | 37 1369 296 . . 111 . 222 450 1554 . . 87 Parts Sabotaged . | . . . . . . . . . . . . . Parts Stolen . | . . . . . . . . . . . . . Parts Stripped . | . . . . . . . . . . . . . Power Chain Reactions 2 | . . . . . . . . . . . . 2 Missiles Intercepted . | . . . . . . . . . . . . . Alert | -11 -10 -10 -10 -9 -8 -7 -7 -7 -6 -6 -6 -5 ------- Run | Jun Mat Min Exi Min Mat Fac Low Low Fac Low Low Fac Peak Influence 234 | 5 118 65 . 73 191 184 . . 234 . . 199 Initial 31 | . 2 . . . . 19 . . . . . 31 Average 35 | 2 22 14 . 19 54 43 . . 29 . . 55 Maximum Alert Level 1 | . . . . . . . . . 1 . . . Low Security (%) 99 | 100 100 100 . 100 100 100 . . 96 . . 100 Level 1 . | . . . . . . . . . 3 . . . Level 2 . | . . . . . . . . . . . . . Level 3 . | . . . . . . . . . . . . . Level 4 . | . . . . . . . . . . . . . Level 5 . | . . . . . . . . . . . . . High Security . | . . . . . . . . . . . . . Max Security . | . . . . . . . . . . . . . Squads Dispatched 37 | . . . . 1 1 15 . . 15 . . 5 Investigation 3 | . . . . . 1 2 . . . . . . Extermination 18 | . . . . . . 8 . . 8 . . 2 Reinforcement 11 | . . . . . . 4 . . 4 . . 3 Assault 1 | . . . . 1 . . . . . . . . Garrison 4 | . . . . . . 1 . . 3 . . . Intercept . | . . . . . . . . . . . . . Searches Triggered . | . . . . . . . . . . . . . Construction Impeded 2 | . . . . . . 1 . . . . . 1 Haulers Reinforced 1 | . . . . . . . . . . . . 1 Active Scanning Responses . | . . . . . . . . . . . . . Cargo Convoy Interrupts 1 | . . . . . . . . . 1 . . . Stealth | -11 -10 -10 -10 -9 -8 -7 -7 -7 -6 -6 -6 -5 --------- Run | Jun Mat Min Exi Min Mat Fac Low Low Fac Low Low Fac Distress Signals 7 | . 1 . . . 2 1 . . . . . 3 Communications Jammed . | . . . . . . . . . . . . . Distress Signals . | . . . . . . . . . . . . . Times Spotted 169 | . 14 1 . 2 20 42 16 6 17 9 7 35 Peak Tracking Total 8 | . 4 1 . 2 3 4 7 3 5 5 7 8 Tactical Retreats 17 | . . . . . . 5 . 2 1 2 1 6 Traps | -11 -10 -10 -10 -9 -8 -7 -7 -7 -6 -6 -6 -5 ------- Run | Jun Mat Min Exi Min Mat Fac Low Low Fac Low Low Fac Traps Triggered 9 | . . . . . 2 4 . . 3 . . . Indirectly . | . . . . . . . . . . . . . Trap Hack Attempts . | . . . . . . . . . . . . . Triggered . | . . . . . . . . . . . . . Disarmed . | . . . . . . . . . . . . . Reprogrammed . | . . . . . . . . . . . . . Reused . | . . . . . . . . . . . . . Traps Extracted . | . . . . . . . . . . . . . Installed . | . . . . . . . . . . . . . Triggered 3 | . . . . . . . 1 . 2 . . . Machines | -11 -10 -10 -10 -9 -8 -7 -7 -7 -6 -6 -6 -5 ---------- Run | Jun Mat Min Exi Min Mat Fac Low Low Fac Low Low Fac Machines Disabled 16 | . . . . . 4 7 . . . . . 5 Max in Single Turn 6 | . . . . . 1 6 . . . . . 2 Garrison Access 3 | . . . . . . 2 . . . . . 1 Machines Repaired . | . . . . . . . . . . . . . Machines Sabotaged . | . . . . . . . . . . . . . Overloaded Fab Kills . | . . . . . . . . . . . . . Hacking | -11 -10 -10 -10 -9 -8 -7 -7 -7 -6 -6 -6 -5 --------- Run | Jun Mat Min Exi Min Mat Fac Low Low Fac Low Low Fac Machines Accessed 44 | . 7 . 1 . 9 21 . . 3 . . 3 Terminals 24 | . 5 . . . 6 10 . . 1 . . 2 Fabricators 2 | . . . . . . 2 . . . . . . Repair Stations 6 | . 1 . . . 1 3 . . 1 . . . Recycling Units 6 | . 1 . . . 1 3 . . 1 . . . Scanalyzers 2 | . . . . . 1 1 . . . . . . Garrison Access 3 | . . . . . . 2 . . . . . 1 Total Hacks 105 | . 26 . 1 . 20 46 . . 6 . . 6 Successful 72 | . 17 . 1 . 13 35 . . 3 . . 3 Failed 33 | . 9 . . . 7 11 . . 3 . . 3 Catastrophic 5 | . 2 . . . . 1 . . 1 . . 1 Database Lockouts . | . . . . . . . . . . . . . Manual 35 | . 11 . 1 . 9 8 . . 2 . . 4 Terminals 65 | . 19 . . . 13 26 . . 2 . . 5 Fabricators 3 | . . . . . . 3 . . . . . . Repair Stations 9 | . 1 . . . 1 5 . . 2 . . . Recycling Units 20 | . 6 . . . 4 8 . . 2 . . . Scanalyzers 3 | . . . . . 2 1 . . . . . . Garrison Access 4 | . . . . . . 3 . . . . . 1 Terminal Hacks 38 | . 10 . 1 . 7 18 . . . . . 2 Record 10 | . . . . . . 8 . . . . . 2 Robot Analysis 1 | . 1 . . . . . . . . . . . Prototype ID Bank 7 | . 3 . . . 2 2 . . . . . . Branch Access Points 2 | . . . . . 1 1 . . . . . . Terminal Index 2 | . 1 . . . . 1 . . . . . . Alert Level 1 | . . . . . . 1 . . . . . . Unreport Threat 2 | . . . . . . 2 . . . . . . Locate Traps 2 | . 2 . . . . . . . . . . . Surveillance Status 1 | . . . . . 1 . . . . . . . Recall Extermination 1 | . . . . . . 1 . . . . . . Recall Assault 1 | . . . . . . 1 . . . . . . Registered Components 3 | . 1 . . . 1 1 . . . . . . Registered Prototypes 1 | . 1 . . . . . . . . . . . Zone Layout 3 | . 1 . . . 2 . . . . . . . EX-Prototype ID Bank 1 | . . . 1 . . . . . . . . . Fabricator Hacks 2 | . . . . . . 2 . . . . . . Network Status 1 | . . . . . . 1 . . . . . . Build 1 | . . . . . . 1 . . . . . . Repair Station Hacks 5 | . . . . . . 4 . . 1 . . . Scan Component 3 | . . . . . . 2 . . 1 . . . Repair 2 | . . . . . . 2 . . . . . . Recycling Unit Hacks 13 | . 3 . . . 3 6 . . 1 . . . Process 1 | . . . . . . 1 . . . . . . Report Inventory 8 | . 2 . . . 2 3 . . 1 . . . Retrieve Components 4 | . 1 . . . 1 2 . . . . . . Scanalyzer . | . . . . . . . . . . . . . Garrison Access Hacks 3 | . . . . . . 2 . . . . . 1 Seal Access 3 | . . . . . . 2 . . . . . 1 Unauthorized Hacks 11 | . 4 . . . 3 3 . . 1 . . . Terminals 7 | . 2 . . . 2 2 . . 1 . . . Botnet 7 | . 2 . . . 2 2 . . 1 . . . Fabricators . | . . . . . . . . . . . . . Repair Stations 1 | . 1 . . . . . . . . . . . Mechanics 1 | . 1 . . . . . . . . . . . Recycling Units 2 | . 1 . . . 1 . . . . . . . Recyclers 2 | . 1 . . . 1 . . . . . . . Scanalyzers 1 | . . . . . . 1 . . . . . . Researchers 1 | . . . . . . 1 . . . . . . Garrison Access . | . . . . . . . . . . . . . Data Cores Recovered 1 | . . . . . 1 . . . . . . . Used . | . . . . . . . . . . . . . Hacking Detections 33 | . 5 . . . 8 15 . . 3 . . 2 Full Trace Events 1 | . . . . . . 1 . . . . . . Feedback Events . | . . . . . . . . . . . . . Feedback Blocked . | . . . . . . . . . . . . . Robot Schematics Acquired . | . . . . . . . . . . . . . Robots Built . | . . . . . . . . . . . . . Authchips . | . . . . . . . . . . . . . Time . | . . . . . . . . . . . . . Total Robot Build Rating . | . . . . . . . . . . . . . Part Schematics Acquired . | . . . . . . . . . . . . . Parts Built 2 | . . . . . . 2 . . . . . . Authchips . | . . . . . . . . . . . . . Time 95 | . . . . . . 95 . . . . . . Total Part Build Rating 10 | . . . . . . 10 . . . . . . Parts Repaired 2 | . . . . . . 2 . . . . . . Time 146 | . . . . . . 146 . . . . . . Parts Recycled . | . . . . . . . . . . . . . Recycled Matter 169 | . . . . . . 169 . . . . . . Retrieved Matter . | . . . . . . . . . . . . . Retrieved Components 30 | . 9 . . . 1 20 . . . . . . Parts Scanalyzed . | . . . . . . . . . . . . . Part Schematics Acquired . | . . . . . . . . . . . . . Parts Damaged . | . . . . . . . . . . . . . Bothacking | -11 -10 -10 -10 -9 -8 -7 -7 -7 -6 -6 -6 -5 ------------ Run | Jun Mat Min Exi Min Mat Fac Low Low Fac Low Low Fac Used RIF Installer . | . . . . . . . . . . . . . Robots Hacked 1 | . . . . . . . . . 1 . . . Non-combat 1 | . . . . . . . . . 1 . . . Combat . | . . . . . . . . . . . . . Robot Hacks Applied 1 | . . . . . . . . . 1 . . . parse_system 1 | . . . . . . . . . 1 . . . Relay Couplers Released . | . . . . . . . . . . . . . Fabnet Peak Effective % . | . . . . . . . . . . . . . Robots Rewired 2 | . . . . . . . 2 . . . . . Allies Hacked . | . . . . . . . . . . . . . Hacks Repelled . | . . . . . . . . . . . . . Allies | -11 -10 -10 -10 -9 -8 -7 -7 -7 -6 -6 -6 -5 -------- Run | Jun Mat Min Exi Min Mat Fac Low Low Fac Low Low Fac Total Allies 5 | . . 2 . 1 . . 2 . . . . . Largest Group 2 | . . 2 2 1 . . 2 1 . . . . Highest-Rated Group 46 | . . 46 46 31 . . 36 16 . . . . Highest-Rated Ally 31 | . . 31 31 31 . . 20 16 . . . . Total Orders 2 | . . . . . . . . . . . . 2 EXPLORE 2 | . . . . . . . . . . . . 2 Ally Attacks 14 | . . . . 9 . . . 5 . . . . Total Damage 135 | . . . . 83 . . . 52 . . . . Kills 2 | . . . . 2 . . . . . . . . Allies Corrupted . | . . . . . . . . . . . . . Allies Melted . | . . . . . . . . . . . . . Intel | -11 -10 -10 -10 -9 -8 -7 -7 -7 -6 -6 -6 -5 ------- Run | Jun Mat Min Exi Min Mat Fac Low Low Fac Low Low Fac Robot Analysis Total 1 | . 1 . . . . . . . . . . . Derelict Logs Recovered 5 | . . 2 . . . . 2 . . 1 . . Drone Launches 2 | . . . . . . . . . . . . 2 Drone Recoveries 2 | . . . . . . . . . . . . 2 Exploration | -11 -10 -10 -10 -9 -8 -7 -7 -7 -6 -6 -6 -5 ------------- Run | Jun Mat Min Exi Min Mat Fac Low Low Fac Low Low Fac Turns Passed 24964 | 163 2194 1802 737 1762 2273 4878 4212 500 3970 721 96 1656 Spaces Moved 13572 | 123 968 744 305 728 1264 2413 2597 423 1604 829 192 1382 Core 1743 | 7 . . . . . . . 192 2 829 192 521 Treads 6935 | . 882 744 305 728 1264 2413 599 . . . . . Legs 1080 | 116 86 . . . . . . . 874 . . 4 Wheels 2571 | . . . . . . . 1998 231 342 . . . Hover 1031 | . . . . . . . . . 386 . . 645 Flight 212 | . . . . . . . . . . . . 212 Fastest Speed 20 | 50 120 240 240 240 145 151 145 50 50 50 50 20 Average Speed 152 | 116 209 240 240 240 149 151 154 105 160 84 50 59 Slowest Speed 385 | 120 240 240 240 240 160 233 225 165 385 350 50 250 Overloaded Moves . | . . . . . . . . . . . . . Propulsion Burnouts . | . . . . . . . . . . . . . Robots Hopped . | . . . . . . . . . . . . . Cave-ins Triggered . | . . . . . . . . . . . . . Exploration Rate (%) 54 | 6 78 92 62 98 67 42 99 21 15 85 23 26 Regions Visited 12 Branch Regions 7 Pre-discovered Areas 3 | . . 1 . . . . 1 . . 1 . . Known Exits Taken 2 | . . . . . 1 1 . . . . . . Unknown Exits Taken 10 | 1 1 1 1 1 . . 1 1 1 1 1 . Scrap Searched 11 | . . 2 . 1 . . 4 1 . 3 . . Spaces Dug 91 | . 2 . . . 11 32 2 . 40 . . 4 Terrain Destroyed 185 | . 2 . . 3 49 46 32 . 45 . . 8 Melee 86 | . . . . . 8 32 2 . 40 . . 4 Projectile 66 | . 2 . . 3 34 14 7 . 5 . . 1 AOE 33 | . . . . . 7 . 23 . . . . 3 Terrain Rammed 1 | . . . . . . . . . 1 . . . Walls Destroyed . | . . . . . . . . . . . . . Machines Disabled . | . . . . . . . . . . . . . Actions | -11 -10 -10 -10 -9 -8 -7 -7 -7 -6 -6 -6 -5 --------- Run | Jun Mat Min Exi Min Mat Fac Low Low Fac Low Low Fac Total 17331 | 138 1079 755 311 743 1637 3478 2711 456 2860 845 191 2127 Wait 2806 | . 39 6 . 8 245 852 19 5 1024 . . 608 Move 13560 | 122 967 743 304 727 1263 2412 2596 422 1603 828 191 1382 Hop . | . . . . . . . . . . . . . Pick Up 106 | 8 12 3 . 3 33 13 5 1 28 . . . Fast Attach 138 | 7 5 . 3 . 5 21 6 9 35 6 . 41 Attach 67 | . 2 . . . 10 17 19 1 13 3 . 2 Detach 71 | . 4 . 2 . 7 23 8 3 17 3 . 4 Swap 48 | . 6 . . 1 17 10 1 2 10 . . 1 Drop 141 | . 13 . 2 3 34 28 2 1 44 3 . 11 Fire 258 | 1 31 3 . . 6 69 41 12 45 . . 50 Melee 100 | . . . . . 17 33 5 . 40 . . 5 Ram 26 | . . . . . . . . . 1 2 . 23 Kick . | . . . . . . . . . . . . . Crush 1 | . . . . 1 . . . . . . . . Escape Stasis . | . . . . . . . . . . . . . Rewire 9 | . . . . . . . 9 . . . . . Trap . | . . . . . . . . . . . . . Miscellaneous . | . . . . . . . . . . . . . Route ------- -11/Junkyard -10/Materials (discovered 3 exits: [*Mat x2] / [*Min]) -10/Mines (discovered 2 exits: [*Mat] / *Exi) -10/Exiles (discovered 2 exits: [*Min x2]) -9/Mines (discovered 2 exits: *Mat x2) -8/Materials (discovered 2 exits: *Fac x2) -7/Factory (discovered 3 exits: *Fac / *Low x2) -7/Lower Caves -7/Lower Caves -6/Factory -6/Lower Caves -6/Lower Caves -5/Factory (discovered 1 exit: [*Upp]) History --------- Turn | Location | Event 10 | -11/Junkyard | Discovered new exit (range 16) 164 | -11/Junkyard | Entered Materials 312 | -10/Materials | Build established: Mutant 397 | -10/Materials | Discovered new exit (range 16) 685 | -10/Materials | Discovered new exit (range 9) 1272 | -10/Materials | Discovered new exit (range 4) 2358 | -10/Materials | Entered Mines 2413 | -10/Mines | Found a damaged Exp. Sensor Array with a note attached 2418 | -10/Mines | Found Prototype Device 3116 | -10/Mines | Discovered new exit (range 5) 3838 | -10/Mines | Learned 2 Materials zone layouts 4143 | -10/Mines | Deemed a non-threat by the Exiles lab entrance 4143 | -10/Mines | Discovered new exit (range 6) 4160 | -10/Mines | Entered Exiles 4160 | -10/Exiles | Accompanied by 2 allies 4190 | -10/Exiles | Led the pair of lost Derelicts to a safe place 4220 | -10/Exiles | Discovered new exit (range 15) 4249 | -10/Exiles | Met 8R-AWN 4292 | -10/Exiles | Met EX-HEX 4379 | -10/Exiles | Met EX-BIN 4412 | -10/Exiles | Aligned with FarCom system 4415 | -10/Exiles | Given EX-Vault access code 4487 | -10/Exiles | Opened EX-Vault 4512 | -10/Exiles | Found AWS/Gauss 4521 | -10/Exiles | Found AWS/Thermal 4582 | -10/Exiles | Warned to stay clear of 0b10 Research branches 4669 | -10/Exiles | Met EX-DEC 4853 | -10/Exiles | Discovered new exit (range 14) 4897 | -10/Exiles | Left Exiles lab with AWS/Gauss 4897 | -10/Exiles | Entered Mines 4898 | -9/Mines | Assembled infested the area 4903 | -9/Mines | Assisted by a Guerilla fighting off Assembled 4941 | -9/Mines | Discovered new exit (range 5) 5685 | -9/Mines | A weapon hastily lodged in a ceiling crevice suddenly fell to the ground 5796 | -9/Mines | Met a Derelict testing a Signal Generator 6067 | -9/Mines | Discovered new exit (range 12) 6659 | -9/Mines | Entered Materials 6659 | -8/Materials | Evolved 4 slots: Propulsion x1, Utility x2, Weapon x1 6660 | -8/Materials | Identified exit to Factory 6660 | -8/Materials | Identified Exp. Sensor Array 6961 | -8/Materials | Build established: Assassin 8119 | -8/Materials | Discovered exit to Factory (range 7) 8932 | -8/Materials | Entered Factory 8932 | -7/Factory | Evolved 2 slots: Propulsion x1, Utility x1 9231 | -7/Factory | Build established: Hacker-Assassin 9658 | -7/Factory | Repaired Exp. Sensor Array 9871 | -7/Factory | Repaired Adv. Treads 10528 | -7/Factory | Garrison activated, responded to threat 10731 | -7/Factory | Fabricated Lgt. Fission Core? 10886 | -7/Factory | Identified exit to Lower Caves 10976 | -7/Factory | Discovered new exit (range 16) 12961 | -7/Factory | Build established: Hacker-Mutant 13349 | -7/Factory | Build established: Hacker-Assassin 13810 | -7/Factory | Entered Lower Caves 13954 | -7/Lower Caves | Spotted B-75 Beast 14034 | -7/Lower Caves | Destroyed B-75 Beast 14060 | -7/Lower Caves | Lost 6 parts (2n2u2w) 14325 | -7/Lower Caves | Discovered new exit (range 13) 14449 | -7/Lower Caves | Build established: Assassin 14822 | -7/Lower Caves | Attracted the attention of an 0b10 outpost 14886 | -7/Lower Caves | Lost 7 parts (2p3n1u1w) 16511 | -7/Lower Caves | Found Alien Artifact 16512 | -7/Lower Caves | Identified Core Expander 16512 | -7/Lower Caves | Installed Core Expander, added new Utility slot 18022 | -7/Lower Caves | Entered another Lower Caves area 18022 | -7/Lower Caves | Accompanied by 1 ally 18097 | -7/Lower Caves | Spotted B-75 Beast 18111 | -7/Lower Caves | Core integrity fell below 50% 18142 | -7/Lower Caves | Released all parts (8) 18168 | -7/Lower Caves | Lost 5 parts (1p1n2u1w) 18182 | -7/Lower Caves | Discovered new exit (range 15) 18263 | -7/Lower Caves | Core integrity fell below 20% 18434 | -7/Lower Caves | Build established: Mutant 18522 | -7/Lower Caves | Entered Factory 18522 | -6/Factory | Evolved 2 slots: Power x1, Utility x1 18825 | -6/Factory | Garrison activated, responded to threat 19127 | -6/Factory | Build established: Hacker-Mutant 19371 | -6/Factory | Cargo convoy interrupted 20089 | -6/Factory | Found Launcher Loader 21560 | -6/Factory | Build established: Scavenger-Mutant 22168 | -6/Factory | Discovered new exit (range 12) 22277 | -6/Factory | Lost 3 parts (3n) 22491 | -6/Factory | Released all parts (13) 22492 | -6/Factory | Entered Lower Caves 22499 | -6/Lower Caves | Encountered a Warlord checkpoint 22937 | -6/Lower Caves | Attracted the attention of an 0b10 base 22979 | -6/Lower Caves | Build established: Mutant 22988 | -6/Lower Caves | Core integrity fell below 50% 23171 | -6/Lower Caves | Attracted the attention of an 0b10 checkpoint 23204 | -6/Lower Caves | Discovered new exit (range 16) 23213 | -6/Lower Caves | Entered another Lower Caves area 23221 | -6/Lower Caves | Discovered new exit (range 16) 23270 | -6/Lower Caves | Spotted B-75 Beast 23309 | -6/Lower Caves | Entered Factory 23309 | -5/Factory | Evolved 2 slots: Propulsion x2 23352 | -5/Factory | Discovered new exit (range 9) 24430 | -5/Factory | Build established: Infiltrator-Mutant 24495 | -5/Factory | System corruption reached 10% 24539 | -5/Factory | Lost 6 parts (1p1n3u1w) 24769 | -5/Factory | Released all parts (10) 24780 | -5/Factory | System corruption reached 30% 24790 | -5/Factory | Lost 4 parts (2n1u1w) 24851 | -5/Factory | Core integrity fell below 50% 24925 | -5/Factory | Core integrity fell below 20% 24965 | -5/Factory | Destroyed by G-50 Soldier with Heavy Laser Last Messages --------------- 24925_ U-05 Engineer lays Concrete. 24927_ U-05 Engineer builds a Wall. 24928_ U-05 Engineer lays Concrete. 24928_ W-25 Informer distress signal alerts nearby ally. 24929_ K-01 Serf cleans the Power Conduit. 24929_ U-05 Engineer builds a Wall. 24938_ K-01 Serf cleans the Power Conduit. 24940_ Acquired Hvy. Phase Cannon. 24943_ System corrupted: Energy discharge (-26). 24943_ W-25 Informer distress signal alerts nearby ally. 24943_ U-05 Engineer lays Concrete. 24944_ K-01 Serf cleans the Subcomponent Replicator. 24946_ Acquired Hpw. Shock Rifle. 24948_ K-01 Serf cleans the Subcomponent Replicator. 24953_ Acquired Hvy. Phase Cannon. 24956_ K-01 Serf cleans the Subcomponent Replicator. 24958_ System corrupted: Matter fused (-5). 24959_ K-01 Serf cleans the Subcomponent Replicator. 24961_ Hvy. Phase Cannon destroyed. [Achievement: Just Browsing] Map ----- +----------------------------------------------------+ | ?????????????????????????????????????????????????? | | ?????????????????????????????????????????????????? | | ?????????????????????????????????????????????????? | | ?????????????????????????????????????????????????? | | ?????????????????????????????????????????????????? | | ?????????????????????????????????????????????????? | | ?????????????????????????????????????????????????? | | ?????????????????????????????????????????????????? | | ?????????????????????????????????????????????????? | | ?????????????????????????????????????????????????? | | ?????????????????????????????????????????????????? | | ?????????????????????????????????????????????????? | | ?????????????????????????????????????????????????? | | ?????????????????????????????????????????????????? | | ########???????????????????##????????????????????? | | ! #???????############;#???"""" ?????????? | | #???????# #??""""" ?????????? | | #???????# " " " #? """ ?????????? | | "" !! #???????# " " " #? !????????? | | "" !! #?####### " " " # #???????? | | "" #?# # "A" " # #???????? | | #?# "" # " " " gk !! #???????? | | ] ### "" # " " " g# ! #???????? | | #+####+# " " " " " # #???????? | | ## #"" !# " " " ] #? ????????? | | " *# " " "w @ #??#########?????????? | | % " |!%%# g #????????????????????? | | " ![!# kg #????????????????????? | | ####"" |####/######################???????? | | # ###??# " " ##w#??# + +???????? | | # #????# " " ## #??# ! #### #???????? | | # #????# " " ## #??# #??# #???????? | | # #????###"""""#### #??# #??# #???????? | | # #??????########## #??# #??# #???????? | | # ##????????# # #??# #??# ######### | | ########## """#w#??# #??# | | + Y"# #??# #??# ##+#### | | ######## # """# ########/######## # # ^ | | ####??????# # / == * + """ # | | ??????????# # # ################# # """ # | | ??????????# # ??# #???????????????# # """ # ^ | | ########### ##+#??# #???????????????# # # ## | | #??# #???????????????# ####### #? | | ###########/## #?## ##??????????????#+#?????# #? | | ???# # ### ######????????? ?????# #? | | ???# """"""" / +???????? ?????# #? | | ???? """"""" ##### #######??????? ????# #? | | ?????""""""" #???##+##????????????? ????# #? | | ??????"""""" #???????????????????? #???# #? | | ??????? #???????????????????? #???# #? | +----------------------------------------------------+ Best States ------------- Heat Dissipation 83 Coolant Potential 80 Energy Generation 31 Energy Capacity 960 Matter Stores 500 Matter Capacity 500 Sight Range 22 Robot Scan Range 20 Terrain Scan Range 16 Terrain Scan Density 135 ECM Strength 2 Jamming Range 12 Power Amplification 20 Armor Coverage 150 Resistance: KI 20 Resistance: TH 20 Resistance: EX 20 Resistance: EM 20 Resistance: I 20 Resistance: S 20 Resistance: P 20 Weapon Shielding 33 Evasion (%) 64 Targeting Accuracy 5 Target Analysis 8 Armor Integrity Analysis 30 Recoil Reduction 4 Matter Filtering 30 Offensive Hacking 22 Authchip Count 1 Trap Extractor Capacity 4 Item Schematics ----------------- None Robot Schematics ------------------ None Fabricated ------------ Lgt. Fission Core | x2 | -7/Factory | Preloaded Alien Tech Used ----------------- Core Expander Achievements -------------- Alien Tech Can't Catch Me Fist Fight Just Browsing Just What I Needed Omniscient Cartographer Power Corrupts Universal Adapter Use The Force Challenges ------------ None Game ------ Seed PowerMetafiberPlating Manual? 0 Play Time 04:57:05 Cumulative 28.4 hours Start 2023.03.30 @ 20:05:11 End 2023.04.02 @ 18:20:51 Sessions 11 Manual Loads 0 Difficulty Adventurer Special Mode None Game No. 12 Rogue 0 Adventurer 12 Explorer 0 Win Type - Total 0 Types 0/0/0/0/0/0/0/0/0 Lore% 24 Gallery% 30 Achievement% 23 Wizard Run 0 Options --------- ASCII 0 Keyboard 1 Movement Arrows Keybinds 0 Fullscreen 1 Font 20/Smallcaps Map View 66x50 Tactical HUD 1 Map Filters NONE Filters NONE Steam 1 RUN: 539ff989-47c5-4148-bc87-a515d852dce8